fUSD/lending_fUSD_20240223
["ID","MTS","AMOUNT","RATE_DAILY","PERIOD"]
[314950654,1708693859222,-500.0,0.00027945,2]
[314950655,1708693859233,-500.0,0.00027945,2]
[314950656,1708693859243,-500.0,0.00027945,2]
[314950657,1708693859252,-500.0,0.00027945,2]
[314950658,1708693859262,-500.0,0.00027945,2]
[314950659,1708693859273,-1934.12,0.00027945,2]
[314950660,1708693859283,-500.0,0.00027945,2]
[314950661,1708693859293,-893.63,0.00027945,2]
[314950662,1708693859303,-296.02862651,0.00027945,2]
[314950663,1708693859313,-590.08,0.00027945,2]
[314950664,1708693859324,-500.0,0.00027945,2]
[314950665,1708693859334,-500.0,0.00027945,2]
[314950666,1708693859345,-500.0,0.00027945,2]
[314950667,1708693859354,-705.84,0.00027945,2]
[314950668,1708693859364,-500.0,0.00027945,2]
[314950669,1708693859374,-500.0,0.00027945,2]
[314950670,1708693859385,-704.79,0.00027945,2]
[314950671,1708693859395,-1139.33,0.00027945,2]
[314950672,1708693859405,-500.0,0.00027945,2]
[314950673,1708693859415,-660.29,0.00027945,2]
[314950674,1708693859425,-2800.15,0.00027945,2]
[314950675,1708693859435,-1317.25,0.00027945,2]
[314950676,1708693859445,-500.0,0.00027945,2]
[314950677,1708693859456,-500.0,0.00027945,2]
[314950678,1708693859466,-500.0,0.00027945,2]
[314950679,1708693859476,-650.89,0.00027945,2]
[314950680,1708693859486,-500.0,0.00027945,2]
[314950681,1708693859497,-636.3657926,0.00027945,2]
[314950682,1708693859507,-1872.79,0.00027945,2]
[314950683,1708693859517,-500.0,0.00027945,2]
[314950684,1708693859527,-500.0,0.00027945,2]
[314950685,1708693859537,-500.0,0.00027945,2]
[314950686,1708693859548,-1281.33,0.00027945,2]
[314950687,1708693859557,-500.0,0.00027945,2]
[314950688,1708693859567,-848.74,0.00027945,2]
[314950689,1708693859577,-297.3442491,0.00027945,2]
[314950690,1708693859587,-500.0,0.00027945,2]
[314950691,1708693859597,-500.0,0.00027945,2]
[314950692,1708693859607,-705.33,0.00027945,2]
[314950693,1708693859617,-693.34,0.00027945,2]
[314950694,1708693859626,-500.0,0.00027945,2]
[314950695,1708693859636,-500.0,0.00027945,2]
[314950696,1708693859646,-2079.75,0.00027945,2]
[314950697,1708693859656,-500.0,0.00027945,2]
[314950698,1708693859665,-1082.32,0.00027945,2]
[314950699,1708693859675,-500.0,0.00027945,2]
[314950700,1708693859685,-500.0,0.00027945,2]
[314950701,1708693859694,-589.95,0.00027945,2]
[314950702,1708693859703,-526.41,0.00027945,2]
[314950703,1708693859714,-500.0,0.00027945,2]
[314950704,1708693859960,-700.3,0.00027945,2]
[314950705,1708693859971,-3025.29,0.00027945,2]
[314950706,1708693859980,-1950.16,0.00027945,2]
[314950707,1708693859990,-500.0,0.00027945,2]
[314950708,1708693860000,-500.0,0.00027945,2]
[314950709,1708693860010,-532.78,0.00027945,2]
[314950710,1708693860019,-1323.25,0.00027945,2]
[314950711,1708693860030,-6442.85,0.00027945,2]
[314950712,1708693860040,-500.0,0.00027945,2]
[314950713,1708693860051,-500.0,0.00027945,2]
[314950714,1708693860061,-675.36,0.00027945,2]
[314950715,1708693860070,-531.5,0.00027945,2]
[314950716,1708693860080,-500.0,0.00027945,2]
[314950717,1708693860090,-500.0,0.00027945,2]
[314950718,1708693860100,-500.0,0.00027945,2]
[314950719,1708693860112,-500.0,0.00027945,2]
[314950720,1708693860123,-500.0,0.00027945,2]
[314950721,1708693860133,-2032.94,0.00027945,2]
[314950722,1708693860143,-500.0,0.00027945,2]
[314950723,1708693860153,-500.0,0.00027945,2]
[314950724,1708693860163,-537.98,0.00027945,2]
[314950725,1708693860173,-500.0,0.00027945,2]
[314950726,1708693860182,-581.06,0.00027945,2]
[314950727,1708693860192,-525.93,0.00027945,2]
[314950728,1708693860201,-500.0,0.00027945,2]
[314950729,1708693860211,-500.0,0.00027945,2]
[314950730,1708693860221,-589.61,0.00027945,2]
[314950731,1708693860231,-500.0,0.00027945,2]
[314950732,1708693860240,-510.82072971,0.00027985,3]
[314950733,1708693860250,-164.49282446,0.00028,2]
[314950734,1708693860260,-25234.81517331,0.00028,2]
[314950735,1708693860270,-2805.96,0.0002803,2]
[314950736,1708693860279,-2291.61934273,0.00028063,2]
[314950737,1708693860289,-310.6,0.00028063,2]
[314950738,1708693860299,-500.0,0.00028082,2]
[314950739,1708693860308,-500.0,0.00028082,2]
[314950740,1708693860318,-500.0,0.00028082,2]
[314950741,1708693860327,-500.0,0.00028082,2]
[314950742,1708693860337,-500.0,0.00028082,2]
[314950743,1708693860346,-500.0,0.00028082,2]
[314950744,1708693860355,-500.0,0.00028082,2]
[314950745,1708693860365,-500.0,0.00028082,2]
[314950746,1708693860374,-500.0,0.00028082,2]
[314950747,1708693860384,-500.0,0.00028082,2]
[314950748,1708693860393,-500.0,0.00028082,2]
[314950749,1708693860402,-500.0,0.00028082,2]
[314950750,1708693860412,-500.0,0.00028082,2]
[314950751,1708693860421,-500.0,0.00028082,2]
[314950752,1708693860431,-500.0,0.00028082,2]
[314950753,1708693860441,-612.43390828,0.00028082,2]
[314950754,1708693860450,-500.0,0.00028082,2]
[314950755,1708693860460,-500.0,0.00028082,2]
[314950756,1708693860470,-500.0,0.00028082,2]
[314950757,1708693860482,-500.0,0.00028082,2]
[314950758,1708693860492,-500.0,0.00028082,2]
[314950759,1708693860502,-500.0,0.00028082,2]
[314950760,1708693860512,-500.0,0.00028082,2]
[314950761,1708693860521,-500.0,0.00028082,2]
[314950762,1708693860531,-500.0,0.00028082,2]
[314950763,1708693860541,-500.0,0.00028082,2]
[314950764,1708693860550,-500.0,0.00028082,2]
[314950765,1708693860560,-500.0,0.00028082,2]
[314950766,1708693860569,-500.0,0.00028082,2]
[314950767,1708693860579,-500.0,0.00028082,2]
[314950768,1708693860588,-500.0,0.00028082,2]
[314950769,1708693860598,-500.0,0.00028082,2]
[314950770,1708693860607,-500.0,0.00028082,2]
[314950771,1708693860617,-545.07,0.00028082,2]
[314950772,1708693860626,-500.0,0.00028082,2]
[314950773,1708693860635,-500.0,0.00028082,2]
[314950774,1708693860645,-731.69,0.00028082,2]
[314950775,1708693860654,-2636.68,0.00028082,2]
[314950776,1708693860663,-500.0,0.00028082,2]
[314950777,1708693860672,-500.0,0.00028082,2]
[314950778,1708693860682,-500.0,0.00028082,2]
[314950779,1708693860691,-1174.28,0.00028082,2]
[314950780,1708693860700,-500.0,0.00028082,2]
[314950781,1708693860709,-4821.81,0.00028082,2]
[314950782,1708693860719,-500.0,0.00028082,2]
[314950783,1708693860729,-510.54,0.00028082,2]
[314950784,1708693860739,-500.0,0.00028082,2]
[314950785,1708693860747,-500.0,0.00028082,2]
[314950786,1708693860756,-1508.81,0.00028082,2]
[314950787,1708693860766,-643.56230482,0.00028082,2]
[314950788,1708693860775,-310.53827752,0.00028082,2]
[314950789,1708693860784,-1349.29,0.00028082,2]
[314950790,1708693860794,-1327.32,0.00028082,2]
[314950791,1708693860803,-500.0,0.00028082,2]
[314950792,1708693860812,-500.0,0.00028082,2]
[314950793,1708693860822,-500.0,0.00028082,2]
[314950794,1708693860831,-214.30335533,0.00028082,2]
[314950795,1708693860840,-500.0,0.00028082,2]
[314950796,1708693860849,-8268.12,0.00028082,2]
[314950797,1708693860858,-500.0,0.00028082,2]
[314950798,1708693860868,-977.56,0.00028082,2]
[314950799,1708693860877,-500.0,0.00028082,2]
[314950800,1708693860886,-500.0,0.00028082,2]
[314950801,1708693860896,-500.0,0.00028082,2]
[314950802,1708693860905,-500.0,0.00028082,2]
[314950803,1708693860914,-500.0,0.00028082,2]
[314950804,1708693860923,-596.66,0.00028082,2]
[314950805,1708693860933,-911.76,0.00028082,2]
[314950806,1708693860942,-500.0,0.00028082,2]
[314950807,1708693860951,-777.61,0.00028082,2]
[314950808,1708693860960,-500.0,0.00028082,2]
[314950809,1708693860970,-500.0,0.00028082,2]
[314950810,1708693860979,-2510.58,0.00028082,2]
[314950811,1708693860989,-500.0,0.00028082,2]
[314950812,1708693860998,-1644.53,0.00028082,2]
[314950813,1708693861008,-618.1,0.00028082,2]
[314950814,1708693861017,-500.0,0.00028082,2]
[314950815,1708693861027,-500.0,0.00028082,2]
[314950816,1708693861036,-500.0,0.00028082,2]
[314950817,1708693861045,-500.0,0.00028082,2]
[314950818,1708693861055,-202.42587135,0.00028082,2]
[314950819,1708693861065,-500.0,0.00028082,2]
[314950820,1708693861074,-500.0,0.00028082,2]
[314950821,1708693861084,-500.0,0.00028082,2]
[314950822,1708693861094,-1934.12,0.00028082,2]
[314950823,1708693861104,-500.0,0.00028082,2]
[314950824,1708693861116,-893.63,0.00028082,2]
[314950825,1708693861126,-590.08,0.00028082,2]
[314950826,1708693861136,-500.0,0.00028082,2]
[314950827,1708693861145,-259.04033988,0.00028082,2]
[314950828,1708693861156,-500.0,0.00028082,2]
[314950829,1708693861165,-705.84,0.00028082,2]
[314950830,1708693861174,-500.0,0.00028082,2]
[314950831,1708693861184,-500.0,0.00028082,2]
[314950832,1708693861194,-704.79,0.00028082,2]
[314950833,1708693861204,-1139.33,0.00028082,2]
[314950834,1708693861213,-500.0,0.00028082,2]
[314950835,1708693861223,-660.29,0.00028082,2]
[314950836,1708693861232,-2800.15,0.00028082,2]
[314950837,1708693861242,-1317.25,0.00028082,2]
[314950838,1708693861251,-500.0,0.00028082,2]
[314950839,1708693861261,-500.0,0.00028082,2]
[314950840,1708693861271,-500.0,0.00028082,2]
[314950841,1708693861281,-650.89,0.00028082,2]
[314950842,1708693861291,-500.0,0.00028082,2]
[314950843,1708693861301,-1872.79,0.00028082,2]
[314950844,1708693861310,-500.0,0.00028082,2]
[314950845,1708693861320,-500.0,0.00028082,2]
[314950846,1708693861329,-500.0,0.00028082,2]
[314950847,1708693861339,-1281.33,0.00028082,2]
[314950848,1708693861348,-500.0,0.00028082,2]
[314950849,1708693861359,-848.74,0.00028082,2]
[314950850,1708693861369,-500.0,0.00028082,2]
[314950851,1708693861378,-500.0,0.00028082,2]
[314950852,1708693861387,-705.33,0.00028082,2]
[314950853,1708693861396,-693.34,0.00028082,2]
[314950854,1708693861406,-500.0,0.00028082,2]
[314950855,1708693861415,-500.0,0.00028082,2]
[314950856,1708693861425,-2079.75,0.00028082,2]
[314950857,1708693861434,-1082.32,0.00028082,2]
[314950858,1708693861443,-500.0,0.00028082,2]
[314950859,1708693861453,-500.0,0.00028082,2]
[314950860,1708693861462,-500.0,0.00028082,2]
[314950861,1708693861473,-589.95,0.00028082,2]
[314950862,1708693861482,-526.41,0.00028082,2]
[314950863,1708693861492,-500.0,0.00028082,2]
[314950864,1708693861501,-700.3,0.00028082,2]
[314950865,1708693861510,-3025.29,0.00028082,2]
[314950866,1708693861519,-1950.16,0.00028082,2]
[314950867,1708693861528,-500.0,0.00028082,2]
[314950868,1708693861537,-500.0,0.00028082,2]
[314950869,1708693861547,-532.78,0.00028082,2]
[314950870,1708693861557,-1323.25,0.00028082,2]
[314950871,1708693861566,-6442.85,0.00028082,2]
[314950872,1708693861576,-500.0,0.00028082,2]
[314950873,1708693861586,-500.0,0.00028082,2]
[314950874,1708693861595,-675.36,0.00028082,2]
[314950875,1708693861605,-531.5,0.00028082,2]
[314950876,1708693861614,-500.0,0.00028082,2]
[314950877,1708693861623,-500.0,0.00028082,2]
[314950878,1708693861632,-500.0,0.00028082,2]
[314950879,1708693861642,-500.0,0.00028082,2]
[314950880,1708693861651,-500.0,0.00028082,2]
[314950881,1708693861661,-2032.94,0.00028082,2]
[314950882,1708693861670,-500.0,0.00028082,2]
[314950883,1708693861679,-500.0,0.00028082,2]
[314950884,1708693861689,-537.98,0.00028082,2]
[314950885,1708693861698,-583.13344368,0.00028082,2]
[314950886,1708693861708,-581.06,0.00028082,2]
[314950887,1708693861717,-525.93,0.00028082,2]
[314950888,1708693861726,-500.0,0.00028082,2]
[314950889,1708693861735,-500.0,0.00028082,2]
[314950890,1708693861745,-589.61,0.00028082,2]
[314950891,1708693861755,-500.0,0.00028082,2]
[314950892,1708693861764,-709.9722075,0.00028121,2]
[314950893,1708693862074,-10954.28200161,0.00028121,2]
[314950894,1708693862084,-150.0,0.00028137,7]
[314950895,1708693862093,-2805.96,0.00028189,2]
[314950896,1708693862102,-310.6,0.000282,2]
[314950897,1708693862113,-500.0,0.00028219,2]
[314950898,1708693862123,-500.0,0.00028219,2]
[314950899,1708693862133,-500.0,0.00028219,2]
[314950900,1708693862143,-500.0,0.00028219,2]
[314950901,1708693862153,-430.24309089,0.00028219,2]
[314950902,1708693862163,-500.0,0.00028219,2]
[314950903,1708693862173,-500.0,0.00028219,2]
[314950904,1708693862182,-500.0,0.00028219,2]
[314950905,1708693862192,-500.0,0.00028219,2]
[314950906,1708693862202,-500.0,0.00028219,2]
[314950907,1708693862211,-500.0,0.00028219,2]
[314950908,1708693862289,-500.0,0.00028219,2]
[314950909,1708693862299,-500.0,0.00028219,2]
[314950910,1708693862309,-500.0,0.00028219,2]
[314950911,1708693862319,-500.0,0.00028219,2]
[314950912,1708693862328,-500.0,0.00028219,2]
[314950913,1708693862338,-500.0,0.00028219,2]
[314950914,1708693862347,-500.0,0.00028219,2]
[314950915,1708693862356,-500.0,0.00028219,2]
[314950916,1708693862366,-500.0,0.00028219,2]
[314950917,1708693862375,-541.64,0.00028219,2]
[314950918,1708693862384,-500.0,0.00028219,2]
[314950919,1708693862393,-500.0,0.00028219,2]
[314950920,1708693862402,-500.0,0.00028219,2]
[314950921,1708693862411,-500.0,0.00028219,2]
[314950922,1708693862421,-511.94039976,0.00028219,2]
[314950923,1708693862430,-500.0,0.00028219,2]
[314950924,1708693862439,-500.0,0.00028219,2]
[314950925,1708693862448,-500.0,0.00028219,2]
[314950926,1708693862457,-516.10250406,0.00028219,2]
[314950927,1708693862467,-500.0,0.00028219,2]
[314950928,1708693862478,-500.0,0.00028219,2]
[314950929,1708693862487,-545.07,0.00028219,2]
[314950930,1708693862497,-500.0,0.00028219,2]
[314950931,1708693862506,-500.0,0.00028219,2]
[314950932,1708693862516,-731.69,0.00028219,2]
[314950933,1708693862524,-2636.68,0.00028219,2]
[314950934,1708693862534,-500.0,0.00028219,2]
[314950935,1708693862543,-500.0,0.00028219,2]
[314950936,1708693862552,-500.0,0.00028219,2]
[314950937,1708693862562,-1174.28,0.00028219,2]
[314950938,1708693862572,-500.0,0.00028219,2]
[314950939,1708693862581,-4821.81,0.00028219,2]
[314950940,1708693862590,-500.0,0.00028219,2]
[314950941,1708693862599,-510.54,0.00028219,2]
[314950942,1708693862609,-500.0,0.00028219,2]
[314950943,1708693862618,-500.0,0.00028219,2]
[314950944,1708693862627,-1508.81,0.00028219,2]
[314950945,1708693862636,-1349.29,0.00028219,2]
[314950946,1708693862646,-1327.32,0.00028219,2]
[314950947,1708693862655,-500.0,0.00028219,2]
[314950948,1708693862664,-500.0,0.00028219,2]
[314950949,1708693862673,-500.0,0.00028219,2]
[314950950,1708693862683,-500.0,0.00028219,2]
[314950951,1708693862692,-8268.12,0.00028219,2]
[314950952,1708693862701,-500.0,0.00028219,2]
[314950953,1708693862710,-977.56,0.00028219,2]
[314950954,1708693862719,-500.0,0.00028219,2]
[314950955,1708693862730,-500.0,0.00028219,2]
[314950956,1708693862739,-500.0,0.00028219,2]
[314950957,1708693862748,-500.0,0.00028219,2]
[314950958,1708693862757,-596.66,0.00028219,2]
[314950959,1708693862767,-911.76,0.00028219,2]
[314950960,1708693862776,-500.0,0.00028219,2]
[314950961,1708693862785,-777.61,0.00028219,2]
[314950962,1708693862795,-500.0,0.00028219,2]
[314950963,1708693862804,-500.0,0.00028219,2]
[314950964,1708693862813,-2510.58,0.00028219,2]
[314950965,1708693862823,-500.0,0.00028219,2]
[314950966,1708693862833,-1644.53,0.00028219,2]
[314950967,1708693862843,-618.1,0.00028219,2]
[314950968,1708693862852,-500.0,0.00028219,2]
[314950969,1708693862861,-500.0,0.00028219,2]
[314950970,1708693862870,-500.0,0.00028219,2]
[314950971,1708693862879,-500.0,0.00028219,2]
[314950972,1708693862888,-500.0,0.00028219,2]
[314950973,1708693862898,-500.0,0.00028219,2]
[314950974,1708693862907,-500.0,0.00028219,2]
[314950975,1708693862917,-1934.12,0.00028219,2]
[314950976,1708693862927,-500.0,0.00028219,2]
[314950977,1708693862937,-893.63,0.00028219,2]
[314950978,1708693862946,-590.08,0.00028219,2]
[314950979,1708693862956,-500.0,0.00028219,2]
[314950980,1708693862965,-500.0,0.00028219,2]
[314950981,1708693862974,-705.84,0.00028219,2]
[314950982,1708693862983,-500.0,0.00028219,2]
[314950983,1708693862992,-500.0,0.00028219,2]
[314950984,1708693863001,-704.79,0.00028219,2]
[314950985,1708693863010,-1139.33,0.00028219,2]
[314950986,1708693863020,-500.0,0.00028219,2]
[314950987,1708693863029,-660.29,0.00028219,2]
[314950988,1708693863037,-2800.15,0.00028219,2]
[314950989,1708693863046,-1317.25,0.00028219,2]
[314950990,1708693863055,-500.0,0.00028219,2]
[314950991,1708693863065,-500.0,0.00028219,2]
[314950992,1708693863074,-500.0,0.00028219,2]
[314950993,1708693863084,-650.89,0.00028219,2]
[314950994,1708693863093,-500.0,0.00028219,2]
[314950995,1708693863102,-1872.79,0.00028219,2]
[314950996,1708693863114,-500.0,0.00028219,2]
[314950997,1708693863123,-500.0,0.00028219,2]
[314950998,1708693863132,-500.0,0.00028219,2]
[314950999,1708693863141,-1281.33,0.00028219,2]
[314951000,1708693863151,-555.28595063,0.00028219,2]
[314951001,1708693863161,-848.74,0.00028219,2]
[314951002,1708693863170,-500.0,0.00028219,2]
[314951003,1708693863179,-500.0,0.00028219,2]
[314951004,1708693863189,-705.33,0.00028219,2]
[314951005,1708693863198,-693.34,0.00028219,2]
[314951006,1708693863207,-500.0,0.00028219,2]
[314951007,1708693863217,-500.0,0.00028219,2]
[314951008,1708693863227,-2079.75,0.00028219,2]
[314951009,1708693863235,-1082.32,0.00028219,2]
[314951010,1708693863244,-187.79168932,0.00028219,2]
[314951011,1708693863254,-500.0,0.00028219,2]
[314951012,1708693863263,-500.0,0.00028219,2]
[314951013,1708693863272,-589.95,0.00028219,2]
[314951014,1708693863282,-526.41,0.00028219,2]
[314951015,1708693863291,-500.0,0.00028219,2]
[314951016,1708693863300,-700.3,0.00028219,2]
[314951017,1708693863309,-3025.29,0.00028219,2]
[314951018,1708693863318,-1950.16,0.00028219,2]
[314951019,1708693863327,-500.0,0.00028219,2]
[314951020,1708693863337,-500.0,0.00028219,2]
[314951021,1708693863346,-532.78,0.00028219,2]
[314951022,1708693863355,-1323.25,0.00028219,2]
[314951023,1708693863365,-6442.85,0.00028219,2]
[314951024,1708693863375,-500.0,0.00028219,2]
[314951025,1708693863385,-500.0,0.00028219,2]
[314951026,1708693863394,-675.36,0.00028219,2]
[314951027,1708693863403,-531.5,0.00028219,2]
[314951028,1708693863413,-500.0,0.00028219,2]
[314951029,1708693863422,-500.0,0.00028219,2]
[314951030,1708693863431,-500.0,0.00028219,2]
[314951031,1708693863441,-500.0,0.00028219,2]
[314951032,1708693863451,-500.0,0.00028219,2]
[314951033,1708693863460,-2032.94,0.00028219,2]
[314951034,1708693863470,-500.0,0.00028219,2]
[314951035,1708693863480,-500.0,0.00028219,2]
[314951036,1708693863489,-537.98,0.00028219,2]
[314951037,1708693863499,-581.06,0.00028219,2]
[314951038,1708693863508,-100.3448613,0.00028219,2]
[314951039,1708693863523,-425.5851387,0.00028219,2]
[314951040,1708693863532,-643.8486554,0.00028219,2]
[314951041,1708693863541,-500.0,0.00028219,2]
[314951042,1708693863550,-589.61,0.00028219,2]
[314951043,1708693863559,-604.636872,0.00028219,2]
[314951044,1708693863568,-382.0,0.00028241,2]
[314951045,1708693863577,-182.0,0.00028241,2]
[314951046,1708693863587,-286.66977384,0.00028297,2]
[314951047,1708693863596,-4499.84755554,0.00028297,2]
[314951048,1708693863605,-599.17164562,0.00028297,2]
[314951049,1708693863614,-341.50715201,0.00028297,2]
[314951050,1708693863623,-19749.98366582,0.00028298,2]
[314951051,1708693863632,-2291.61934273,0.00028335,2]
[314951052,1708693863641,-310.6,0.00028337,2]
[314951053,1708693863650,-521.44786236,0.00028347,2]
[314951054,1708693863662,-2284.51213764,0.00028347,2]
[314951055,1708693863671,-500.0,0.00028356,2]
[314951056,1708693863680,-500.0,0.00028356,2]
[314951057,1708693863690,-500.0,0.00028356,2]
[314951058,1708693863699,-500.0,0.00028356,2]
[314951059,1708693863709,-500.0,0.00028356,2]
[314951060,1708693863719,-500.0,0.00028356,2]
[314951061,1708693863729,-500.0,0.00028356,2]
[314951062,1708693863738,-500.0,0.00028356,2]
[314951063,1708693863748,-572.59055893,0.00028356,2]
[314951064,1708693863758,-318.44,0.00028356,2]
[314951065,1708693863768,-284.14989029,0.00028356,2]
[314951066,1708693863777,-500.0,0.00028356,2]
[314951067,1708693863786,-500.0,0.00028356,2]
[314951068,1708693863795,-500.0,0.00028356,2]
[314951069,1708693863804,-500.0,0.00028356,2]
[314951070,1708693863814,-500.0,0.00028356,2]
[314951071,1708693863824,-500.0,0.00028356,2]
[314951072,1708693863834,-500.0,0.00028356,2]
[314951073,1708693863844,-500.0,0.00028356,2]
[314951074,1708693863854,-500.0,0.00028356,2]
[314951075,1708693863865,-500.0,0.00028356,2]
[314951076,1708693863874,-500.0,0.00028356,2]
[314951077,1708693863883,-500.0,0.00028356,2]
[314951078,1708693863893,-500.0,0.00028356,2]
[314951079,1708693863904,-500.0,0.00028356,2]
[314951080,1708693863915,-500.0,0.00028356,2]
[314951081,1708693863926,-500.0,0.00028356,2]
[314951082,1708693863936,-500.0,0.00028356,2]
[314951083,1708693863946,-545.07,0.00028356,2]
[314951084,1708693863956,-500.0,0.00028356,2]
[314951085,1708693863965,-500.0,0.00028356,2]
[314951086,1708693863975,-731.69,0.00028356,2]
[314951087,1708693863984,-2636.68,0.00028356,2]
[314951088,1708693863993,-500.0,0.00028356,2]
[314951089,1708693864003,-231.26048548,0.00028356,2]
[314951090,1708693864012,-253.8,0.00028356,2]
[314951091,1708693864021,-1174.28,0.00028356,2]
[314951092,1708693864030,-500.0,0.00028356,2]
[314951093,1708693864039,-4821.81,0.00028356,2]
[314951094,1708693864048,-500.0,0.00028356,2]
[314951095,1708693864057,-510.54,0.00028356,2]
[314951096,1708693864066,-500.0,0.00028356,2]
[314951097,1708693864075,-500.0,0.00028356,2]
[314951098,1708693864084,-1508.81,0.00028356,2]
[314951099,1708693864093,-1349.29,0.00028356,2]
[314951100,1708693864102,-1327.32,0.00028356,2]
[314951101,1708693864112,-500.0,0.00028356,2]
[314951102,1708693864123,-500.0,0.00028356,2]
[314951103,1708693864133,-500.0,0.00028356,2]
[314951104,1708693864142,-500.0,0.00028356,2]
[314951105,1708693864151,-8268.12,0.00028356,2]
[314951106,1708693864162,-500.0,0.00028356,2]
[314951107,1708693864171,-977.56,0.00028356,2]
[314951108,1708693864179,-500.0,0.00028356,2]
[314951109,1708693864189,-500.0,0.00028356,2]
[314951110,1708693864198,-500.0,0.00028356,2]
[314951111,1708693864208,-500.0,0.00028356,2]
[314951112,1708693864217,-596.66,0.00028356,2]
[314951113,1708693864227,-500.0,0.00028356,2]
[314951114,1708693864236,-911.76,0.00028356,2]
[314951115,1708693864244,-777.61,0.00028356,2]
[314951116,1708693864254,-500.0,0.00028356,2]
[314951117,1708693864262,-500.0,0.00028356,2]
[314951118,1708693864272,-2510.58,0.00028356,2]
[314951119,1708693864281,-500.0,0.00028356,2]
[314951120,1708693864291,-1644.53,0.00028356,2]
[314951121,1708693864301,-618.1,0.00028356,2]
[314951122,1708693864310,-500.0,0.00028356,2]
[314951123,1708693864319,-500.0,0.00028356,2]
[314951124,1708693864329,-500.0,0.00028356,2]
[314951125,1708693864338,-500.0,0.00028356,2]
[314951126,1708693864348,-500.0,0.00028356,2]
[314951127,1708693864357,-500.0,0.00028356,2]
[314951128,1708693864366,-500.0,0.00028356,2]
[314951129,1708693864376,-1934.12,0.00028356,2]
[314951130,1708693864385,-341.38161309,0.00028356,2]
[314951131,1708693864395,-893.63,0.00028356,2]
[314951132,1708693864404,-590.08,0.00028356,2]
[314951133,1708693864414,-500.0,0.00028356,2]
[314951134,1708693864423,-500.0,0.00028356,2]
[314951135,1708693864432,-705.84,0.00028356,2]
[314951136,1708693864441,-500.0,0.00028356,2]
[314951137,1708693864451,-500.0,0.00028356,2]
[314951138,1708693864460,-704.79,0.00028356,2]
[314951139,1708693864469,-1139.33,0.00028356,2]
[314951140,1708693864480,-500.0,0.00028356,2]
[314951141,1708693864490,-660.29,0.00028356,2]
[314951142,1708693864499,-2800.15,0.00028356,2]
[314951143,1708693864509,-1317.25,0.00028356,2]
[314951144,1708693864518,-500.0,0.00028356,2]
[314951145,1708693864528,-500.0,0.00028356,2]
[314951146,1708693864537,-500.0,0.00028356,2]
[314951147,1708693864547,-650.89,0.00028356,2]
[314951148,1708693864556,-500.0,0.00028356,2]
[314951149,1708693864566,-1872.79,0.00028356,2]
[314951150,1708693864576,-500.0,0.00028356,2]
[314951151,1708693864585,-500.0,0.00028356,2]
[314951152,1708693864594,-500.0,0.00028356,2]
[314951153,1708693864603,-1281.33,0.00028356,2]